[Event "Titled Tuesday Blitz October 04 Early 2022"]
[White "Vaishali, Rameshbabu"]
[Black "Bortnyk, Mykola"]
[WhiteFideId "5091756"]
[BlackFideId "14120836"]
[WhiteElo "2351"]
[BlackElo "2582"]
[Result "0-1"]
[Round "02"]
[TimeControl "180+1"]
[Date "2022.10.04"]
[WhiteClock "0:00:49"]
[BlackClock "0:01:56"]

1. e4 {[%clk 0:03:00]}  Nf6 {[%clk 0:02:59]} 2. e5 {[%clk 0:03:00]}  Nd5 {[%clk 0:02:59]} 3. c4 {[%clk 0:02:59]}  Nb6 {[%clk 0:02:59]} 4. d4 {[%clk 0:02:59]}  d6 {[%clk 0:02:59]} 5. f4 {[%clk 0:03:00]}  dxe5 {[%clk 0:02:59]} 6. fxe5 {[%clk 0:03:01]}  Nc6 {[%clk 0:03:00]} 7. Be3 {[%clk 0:02:57]}  Bf5 {[%clk 0:03:00]} 8. Nc3 {[%clk 0:02:57]}  e6 {[%clk 0:03:00]} 9. Nf3 {[%clk 0:02:57]}  Qd7 {[%clk 0:03:00]} 10. Be2 {[%clk 0:02:56]}  O-O-O {[%clk 0:03:01]} 11. O-O {[%clk 0:02:54]}  Bg4 {[%clk 0:02:59]} 12. Ng5 {[%clk 0:02:31]}  Nxc4 {[%clk 0:02:33]} 13. Bxg4 {[%clk 0:02:09]}  Nxe3 {[%clk 0:02:32]} 14. Qf3 {[%clk 0:01:54]}  Qxd4 {[%clk 0:02:23]} 15. Nxf7 {[%clk 0:01:25]}  Nxg4+ {[%clk 0:02:18]} 16. Kh1 {[%clk 0:01:20]}  Ngxe5 {[%clk 0:02:16]} 17. Qh3 {[%clk 0:00:56]}  Nxf7 {[%clk 0:02:13]} 18. Rxf7 {[%clk 0:00:57]}  Bd6 {[%clk 0:02:05]} 19. Re1 {[%clk 0:00:53]}  Kb8 {[%clk 0:02:01]} 20. Qxe6 {[%clk 0:00:49]}  a6 {[%clk 0:01:56]} 0-1


[Site "https://www.chess.com"]

[Event "Titled Tuesday Blitz October 04 Early 2022"]
[White "Zhigalko, Sergei"]
[Black "Korelskiy, Egor"]
[WhiteFideId "13502956"]
[BlackFideId "34329064"]
[WhiteElo "2662"]
[BlackElo "2053"]
[Result "1-0"]
[Round "02"]
[TimeControl "180+1"]
[Date "2022.10.04"]
[WhiteClock "0:02:03"]
[BlackClock "0:00:54"]

1. e4 {[%clk 0:03:00]}  c5 {[%clk 0:02:59]} 2. Nf3 {[%clk 0:02:58]}  e6 {[%clk 0:02:59]} 3. c3 {[%clk 0:02:56]}  d5 {[%clk 0:02:59]} 4. e5 {[%clk 0:02:56]}  Nc6 {[%clk 0:02:58]} 5. d4 {[%clk 0:02:56]}  Qb6 {[%clk 0:02:59]} 6. a3 {[%clk 0:02:56]}  c4 {[%clk 0:02:59]} 7. Nbd2 {[%clk 0:02:56]}  Na5 {[%clk 0:02:59]} 8. Be2 {[%clk 0:02:56]}  Bd7 {[%clk 0:02:59]} 9. O-O {[%clk 0:02:56]}  Ne7 {[%clk 0:02:59]} 10. h4 {[%clk 0:02:56]}  h6 {[%clk 0:02:59]} 11. h5 {[%clk 0:02:56]}  O-O-O {[%clk 0:02:58]} 12. Qe1 {[%clk 0:02:55]}  Kb8 {[%clk 0:02:58]} 13. Bd1 {[%clk 0:02:55]}  Nc8 {[%clk 0:02:55]} 14. Nh4 {[%clk 0:02:53]}  Be7 {[%clk 0:02:53]} 15. f4 {[%clk 0:02:53]}  Qc7 {[%clk 0:02:52]} 16. Bc2 {[%clk 0:02:37]}  Nb6 {[%clk 0:02:50]} 17. f5 {[%clk 0:02:31]}  Bxh4 {[%clk 0:02:16]} 18. Qxh4 {[%clk 0:02:30]}  exf5 {[%clk 0:02:14]} 19. Bxf5 {[%clk 0:02:25]}  Bxf5 {[%clk 0:02:13]} 20. Rxf5 {[%clk 0:02:26]}  Qd7 {[%clk 0:02:13]} 21. Qf4 {[%clk 0:02:23]}  Rhf8 {[%clk 0:01:41]} 22. e6+ {[%clk 0:02:22]}  Qc7 {[%clk 0:01:42]} 23. e7 {[%clk 0:02:19]}  Qxf4 {[%clk 0:01:24]} 24. Rxf4 {[%clk 0:02:18]}  Rde8 {[%clk 0:01:22]} 25. exf8=Q {[%clk 0:02:18]}  Rxf8 {[%clk 0:01:22]} 26. Rf1 {[%clk 0:02:12]}  f6 {[%clk 0:01:22]} 27. Nf3 {[%clk 0:02:12]}  Nb3 {[%clk 0:01:21]} 28. Bf4+ {[%clk 0:02:13]}  Kc8 {[%clk 0:01:21]} 29. Rae1 {[%clk 0:02:13]}  Kd7 {[%clk 0:01:21]} 30. Nh4 {[%clk 0:02:14]}  Na4 {[%clk 0:01:20]} 31. Rf2 {[%clk 0:02:13]}  b5 {[%clk 0:01:16]} 32. Nf5 {[%clk 0:02:12]}  Rf7 {[%clk 0:01:11]} 33. Rfe2 {[%clk 0:02:05]}  a5 {[%clk 0:00:57]} 34. Nd6 {[%clk 0:02:04]}  Rf8 {[%clk 0:00:55]} 35. Nxb5 {[%clk 0:02:04]}  Kc6 {[%clk 0:00:54]} 36. Nd6 {[%clk 0:02:03]} 1-0


[Site "https://www.chess.com"]

[Event "Titled Tuesday Blitz October 04 Early 2022"]
[White "Bortnyk, Mykola"]
[Black "Erdogdu, Mert"]
[WhiteFideId "14120836"]
[BlackFideId "6301495"]
[WhiteElo "2582"]
[BlackElo "2413"]
[Result "1/2-1/2"]
[Round "03"]
[TimeControl "180+1"]
[Date "2022.10.04"]
[WhiteClock "0:00:22"]
[BlackClock "0:00:20"]

1. e4 {[%clk 0:03:00]}  c5 {[%clk 0:03:00]} 2. c3 {[%clk 0:03:00]}  d5 {[%clk 0:03:00]} 3. exd5 {[%clk 0:03:01]}  Qxd5 {[%clk 0:03:01]} 4. d4 {[%clk 0:03:02]}  Nf6 {[%clk 0:03:01]} 5. Nf3 {[%clk 0:03:02]}  Bg4 {[%clk 0:03:02]} 6. Be2 {[%clk 0:03:02]}  e6 {[%clk 0:03:02]} 7. O-O {[%clk 0:03:01]}  Nc6 {[%clk 0:03:02]} 8. h3 {[%clk 0:03:01]}  Bh5 {[%clk 0:03:02]} 9. Be3 {[%clk 0:02:58]}  cxd4 {[%clk 0:03:02]} 10. cxd4 {[%clk 0:02:59]}  Be7 {[%clk 0:03:02]} 11. Nc3 {[%clk 0:02:59]}  Qd6 {[%clk 0:03:03]} 12. a3 {[%clk 0:02:58]}  O-O {[%clk 0:03:03]} 13. Qb3 {[%clk 0:02:59]}  Rfd8 {[%clk 0:03:01]} 14. Rad1 {[%clk 0:02:56]}  Rac8 {[%clk 0:03:00]} 15. Rfe1 {[%clk 0:02:43]}  Nd5 {[%clk 0:02:40]} 16. Ne4 {[%clk 0:02:38]}  Qb8 {[%clk 0:02:36]} 17. Ng3 {[%clk 0:02:26]}  Bg6 {[%clk 0:02:23]} 18. h4 {[%clk 0:02:03]}  Na5 {[%clk 0:02:15]} 19. Qb5 {[%clk 0:01:57]}  Nxe3 {[%clk 0:02:01]} 20. fxe3 {[%clk 0:01:57]}  Qxg3 {[%clk 0:01:59]} 21. Qxa5 {[%clk 0:01:57]}  Bxh4 {[%clk 0:01:50]} 22. Nxh4 {[%clk 0:01:53]}  Qxh4 {[%clk 0:01:42]} 23. Bf3 {[%clk 0:01:48]}  Be4 {[%clk 0:01:24]} 24. Rf1 {[%clk 0:01:41]}  a6 {[%clk 0:01:19]} 25. Qe5 {[%clk 0:01:33]}  Bxf3 {[%clk 0:01:16]} 26. Rxf3 {[%clk 0:01:34]}  Rd5 {[%clk 0:01:13]} 27. Qf4 {[%clk 0:01:23]}  Qxf4 {[%clk 0:01:13]} 28. Rxf4 {[%clk 0:01:24]}  g6 {[%clk 0:01:05]} 29. Rd2 {[%clk 0:01:22]}  f5 {[%clk 0:01:03]} 30. e4 {[%clk 0:01:22]}  Rd6 {[%clk 0:01:03]} 31. exf5 {[%clk 0:01:19]}  exf5 {[%clk 0:01:02]} 32. g4 {[%clk 0:01:20]}  fxg4 {[%clk 0:01:02]} 33. Rxg4 {[%clk 0:01:19]}  h5 {[%clk 0:01:02]} 34. Re4 {[%clk 0:01:18]}  Rc7 {[%clk 0:01:02]} 35. Kf2 {[%clk 0:01:16]}  Kg7 {[%clk 0:01:02]} 36. Ke3 {[%clk 0:01:16]}  g5 {[%clk 0:00:49]} 37. d5 {[%clk 0:01:14]}  Rcd7 {[%clk 0:00:43]} 38. Re5 {[%clk 0:01:14]}  Kf6 {[%clk 0:00:42]} 39. Ke4 {[%clk 0:01:15]}  Kg6 {[%clk 0:00:33]} 40. Rf2 {[%clk 0:01:08]}  Rf6 {[%clk 0:00:32]} 41. Rxf6+ {[%clk 0:00:54]}  Kxf6 {[%clk 0:00:25]} 42. Re6+ {[%clk 0:00:55]}  Kf7 {[%clk 0:00:23]} 43. Rh6 {[%clk 0:00:54]}  h4 {[%clk 0:00:22]} 44. Ke5 {[%clk 0:00:35]}  Kg7 {[%clk 0:00:22]} 45. Rh5 {[%clk 0:00:36]}  Kg6 {[%clk 0:00:22]} 46. Rh8 {[%clk 0:00:36]}  Re7+ {[%clk 0:00:21]} 47. Kd4 {[%clk 0:00:31]}  Re1 {[%clk 0:00:20]} 48. d6 {[%clk 0:00:32]}  Rd1+ {[%clk 0:00:20]} 49. Ke5 {[%clk 0:00:32]}  Re1+ {[%clk 0:00:21]} 50. Kd5 {[%clk 0:00:32]}  Rd1+ {[%clk 0:00:21]} 51. Ke6 {[%clk 0:00:33]}  Re1+ {[%clk 0:00:21]} 52. Kd5 {[%clk 0:00:33]}  Rd1+ {[%clk 0:00:20]} 53. Ke6 {[%clk 0:00:27]}  Re1+ {[%clk 0:00:20]} 54. Kd5 {[%clk 0:00:22]} 1/2-1/2


[Site "https://www.chess.com"]

[Event "Titled Tuesday Blitz October 04 Early 2022"]
[White "Bykov, Egor"]
[Black "Ivic, Velimir"]
[WhiteFideId "34115290"]
[BlackFideId "950122"]
[WhiteElo "2327"]
[BlackElo "2625"]
[Result "0-1"]
[Round "03"]
[TimeControl "180+1"]
[Date "2022.10.04"]
[WhiteClock "0:00:04"]
[BlackClock "0:00:10"]

1. e4 {[%clk 0:03:00]}  c5 {[%clk 0:02:59]} 2. Nf3 {[%clk 0:03:00]}  e6 {[%clk 0:03:00]} 3. d4 {[%clk 0:03:00]}  cxd4 {[%clk 0:03:01]} 4. Nxd4 {[%clk 0:03:01]}  Nf6 {[%clk 0:03:01]} 5. Nc3 {[%clk 0:03:01]}  Nc6 {[%clk 0:03:02]} 6. Ndb5 {[%clk 0:03:01]}  d6 {[%clk 0:03:02]} 7. Bf4 {[%clk 0:02:48]}  e5 {[%clk 0:03:03]} 8. Bg5 {[%clk 0:02:43]}  a6 {[%clk 0:03:03]} 9. Na3 {[%clk 0:02:42]}  b5 {[%clk 0:03:04]} 10. Bxf6 {[%clk 0:02:30]}  gxf6 {[%clk 0:03:05]} 11. Nd5 {[%clk 0:02:27]}  f5 {[%clk 0:03:05]} 12. exf5 {[%clk 0:02:12]}  Bxf5 {[%clk 0:03:04]} 13. Bd3 {[%clk 0:02:12]}  Bxd3 {[%clk 0:02:58]} 14. Qxd3 {[%clk 0:02:13]}  Bg7 {[%clk 0:02:57]} 15. O-O-O {[%clk 0:01:49]}  O-O {[%clk 0:02:55]} 16. Ne3 {[%clk 0:01:44]}  Nd4 {[%clk 0:02:48]} 17. c3 {[%clk 0:01:43]}  Rc8 {[%clk 0:02:48]} 18. Kb1 {[%clk 0:01:41]}  b4 {[%clk 0:02:47]} 19. cxd4 {[%clk 0:01:14]}  bxa3 {[%clk 0:02:47]} 20. Nf5 {[%clk 0:00:58]}  axb2 {[%clk 0:02:34]} 21. Nxg7 {[%clk 0:00:42]}  Kxg7 {[%clk 0:02:29]} 22. dxe5 {[%clk 0:00:38]}  Qg5 {[%clk 0:02:15]} 23. Qxd6 {[%clk 0:00:24]}  Qf5+ {[%clk 0:02:06]} 24. Rd3 {[%clk 0:00:17]}  Kg8 {[%clk 0:00:45]} 25. Kxb2 {[%clk 0:00:08]}  Qxf2+ {[%clk 0:00:44]} 26. Ka1 {[%clk 0:00:07]}  f6 {[%clk 0:00:18]} 27. Rg3+ {[%clk 0:00:06]}  Kh8 {[%clk 0:00:18]} 28. exf6 {[%clk 0:00:04]}  Rxf6 {[%clk 0:00:12]} 29. Qd7 {[%clk 0:00:05]}  Rg8 {[%clk 0:00:12]} 30. Rxg8+ {[%clk 0:00:05]}  Kxg8 {[%clk 0:00:13]} 31. Rc1 {[%clk 0:00:04]}  Rf7 {[%clk 0:00:10]} 32. Qg4+ {[%clk 0:00:02]}  Kh8 {[%clk 0:00:10]} 33. Rc8+ {[%clk 0:00:02]}  Rf8 {[%clk 0:00:10]} 34. Rxf8+ {[%clk 0:00:02]}  Qxf8 {[%clk 0:00:11]} 35. Qd4+ {[%clk 0:00:03]}  Kg8 {[%clk 0:00:12]} 36. Qd5+ {[%clk 0:00:03]}  Kh8 {[%clk 0:00:12]} 37. Qe5+ {[%clk 0:00:03]}  Kg8 {[%clk 0:00:13]} 38. Qd5+ {[%clk 0:00:04]}  Kh8 {[%clk 0:00:13]} 39. Qd4+ {[%clk 0:00:04]}  Kg8 {[%clk 0:00:13]} 40. Kb2 {[%clk 0:00:05]}  Qb8+ {[%clk 0:00:12]} 41. Kc3 {[%clk 0:00:06]}  Qxh2 {[%clk 0:00:13]} 42. Qd8+ {[%clk 0:00:05]}  Kg7 {[%clk 0:00:13]} 43. Qd7+ {[%clk 0:00:04]}  Kg6 {[%clk 0:00:12]} 44. Qg4+ {[%clk 0:00:05]}  Kf6 {[%clk 0:00:12]} 45. Kb4 {[%clk 0:00:05]}  h5 {[%clk 0:00:12]} 46. Qf3+ {[%clk 0:00:05]}  Kg5 {[%clk 0:00:12]} 47. Ka5 {[%clk 0:00:05]}  Qe5+ {[%clk 0:00:11]} 48. Kxa6 {[%clk 0:00:05]}  Qe6+ {[%clk 0:00:11]} 49. Kb5 {[%clk 0:00:05]}  Qxa2 {[%clk 0:00:12]} 50. Kc5 {[%clk 0:00:05]}  Qd2 {[%clk 0:00:12]} 51. Kc4 {[%clk 0:00:05]}  h4 {[%clk 0:00:12]} 52. Qe4 {[%clk 0:00:03]}  Qd6 {[%clk 0:00:11]} 53. Qe8 {[%clk 0:00:01]}  Kg4 {[%clk 0:00:10]} 54. Qg8+ {[%clk 0:00:01]}  Kf4 {[%clk 0:00:10]} 55. Qf7+ {[%clk 0:00:01]}  Kg3 {[%clk 0:00:10]} 56. Qg7+ {[%clk 0:00:02]}  Kh2 {[%clk 0:00:10]} 57. Kc3 {[%clk 0:00:02]}  Qg3+ {[%clk 0:00:09]} 58. Qxg3+ {[%clk 0:00:03]}  Kxg3 {[%clk 0:00:09]} 59. Kd3 {[%clk 0:00:04]}  Kxg2 {[%clk 0:00:10]} 0-1


[Site "https://www.chess.com"]

[Event "Titled Tuesday Blitz October 04 Early 2022"]
[White "Goltsev, Dmitry"]
[Black "Zhigalko, Sergei"]
[WhiteFideId "24176710"]
[BlackFideId "13502956"]
[WhiteElo "2257"]
[BlackElo "2662"]
[Result "1/2-1/2"]
[Round "03"]
[TimeControl "180+1"]
[Date "2022.10.04"]
[WhiteClock "0:00:20"]
[BlackClock "0:00:11"]

1. e4 {[%clk 0:03:00]}  c5 {[%clk 0:03:00]} 2. Nf3 {[%clk 0:03:00]}  Nc6 {[%clk 0:03:00]} 3. d4 {[%clk 0:02:59]}  cxd4 {[%clk 0:03:01]} 4. Nxd4 {[%clk 0:02:59]}  Nf6 {[%clk 0:03:01]} 5. Nc3 {[%clk 0:02:59]}  e5 {[%clk 0:03:01]} 6. Nf3 {[%clk 0:02:53]}  Bb4 {[%clk 0:03:00]} 7. Bd3 {[%clk 0:02:53]}  d5 {[%clk 0:03:00]} 8. exd5 {[%clk 0:02:53]}  Nxd5 {[%clk 0:03:00]} 9. Bd2 {[%clk 0:02:53]}  O-O {[%clk 0:02:57]} 10. O-O {[%clk 0:02:49]}  Bxc3 {[%clk 0:02:45]} 11. bxc3 {[%clk 0:02:47]}  h6 {[%clk 0:02:39]} 12. c4 {[%clk 0:02:43]}  Nf4 {[%clk 0:02:20]} 13. Bxf4 {[%clk 0:02:38]}  exf4 {[%clk 0:02:20]} 14. Be4 {[%clk 0:02:36]}  Qf6 {[%clk 0:02:20]} 15. Bxc6 {[%clk 0:02:24]}  Qxc6 {[%clk 0:02:17]} 16. Qd4 {[%clk 0:02:23]}  Be6 {[%clk 0:02:04]} 17. Qxf4 {[%clk 0:02:21]}  Qxc4 {[%clk 0:01:53]} 18. Qxc4 {[%clk 0:02:21]}  Bxc4 {[%clk 0:01:54]} 19. Rfe1 {[%clk 0:02:17]}  Rac8 {[%clk 0:01:51]} 20. Nd4 {[%clk 0:02:07]}  Rfd8 {[%clk 0:01:49]} 21. c3 {[%clk 0:02:05]}  Bd3 {[%clk 0:01:36]} 22. Rac1 {[%clk 0:01:37]}  Kf8 {[%clk 0:01:30]} 23. h3 {[%clk 0:01:31]}  g6 {[%clk 0:01:22]} 24. Red1 {[%clk 0:01:14]}  Bc4 {[%clk 0:01:16]} 25. Rd2 {[%clk 0:01:13]}  Rd5 {[%clk 0:01:13]} 26. Re1 {[%clk 0:01:06]}  Ra5 {[%clk 0:01:09]} 27. Nb3 {[%clk 0:01:02]}  Bxb3 {[%clk 0:01:04]} 28. axb3 {[%clk 0:01:03]}  Rxc3 {[%clk 0:01:04]} 29. Rd8+ {[%clk 0:00:50]}  Kg7 {[%clk 0:01:04]} 30. b4 {[%clk 0:00:43]}  Rb5 {[%clk 0:01:01]} 31. Re7 {[%clk 0:00:40]}  Rxb4 {[%clk 0:00:43]} 32. Rdd7 {[%clk 0:00:40]}  Rf4 {[%clk 0:00:37]} 33. Rxb7 {[%clk 0:00:41]}  a5 {[%clk 0:00:09]} 34. f3 {[%clk 0:00:40]}  Rf5 {[%clk 0:00:05]} 35. Ra7 {[%clk 0:00:39]}  h5 {[%clk 0:00:05]} 36. h4 {[%clk 0:00:36]}  Rc4 {[%clk 0:00:05]} 37. Re4 {[%clk 0:00:20]}  Rxe4 {[%clk 0:00:04]} 38. fxe4 {[%clk 0:00:20]}  Rf4 {[%clk 0:00:04]} 39. g3 {[%clk 0:00:20]}  Rf3 {[%clk 0:00:03]} 40. Kg2 {[%clk 0:00:19]}  Ra3 {[%clk 0:00:03]} 41. e5 {[%clk 0:00:19]}  Kf8 {[%clk 0:00:04]} 42. Kh3 {[%clk 0:00:19]}  a4 {[%clk 0:00:04]} 43. Kh2 {[%clk 0:00:19]}  Ra1 {[%clk 0:00:04]} 44. Kg2 {[%clk 0:00:19]}  a3 {[%clk 0:00:04]} 45. Kh2 {[%clk 0:00:19]}  a2 {[%clk 0:00:04]} 46. Kg2 {[%clk 0:00:20]}  Ke8 {[%clk 0:00:04]} 47. Kh2 {[%clk 0:00:19]}  Kd8 {[%clk 0:00:04]} 48. Kg2 {[%clk 0:00:18]}  Kc8 {[%clk 0:00:05]} 49. Kh2 {[%clk 0:00:18]}  Kb8 {[%clk 0:00:05]} 50. Ra3 {[%clk 0:00:18]}  Kb7 {[%clk 0:00:05]} 51. Kg2 {[%clk 0:00:18]}  Kc6 {[%clk 0:00:05]} 52. Kh2 {[%clk 0:00:18]}  Kd5 {[%clk 0:00:05]} 53. Ra5+ {[%clk 0:00:18]}  Ke4 {[%clk 0:00:06]} 54. Kg2 {[%clk 0:00:18]}  Ke3 {[%clk 0:00:06]} 55. Ra8 {[%clk 0:00:16]}  Kd4 {[%clk 0:00:06]} 56. Ra5 {[%clk 0:00:16]}  Kc4 {[%clk 0:00:06]} 57. Ra8 {[%clk 0:00:16]}  Kd3 {[%clk 0:00:06]} 58. Kh2 {[%clk 0:00:15]}  Re1 {[%clk 0:00:05]} 59. Rxa2 {[%clk 0:00:15]}  Re2+ {[%clk 0:00:05]} 60. Rxe2 {[%clk 0:00:14]}  Kxe2 {[%clk 0:00:06]} 61. g4 {[%clk 0:00:15]}  hxg4 {[%clk 0:00:06]} 62. Kg3 {[%clk 0:00:15]}  Ke3 {[%clk 0:00:06]} 63. Kxg4 {[%clk 0:00:15]}  Kd4 {[%clk 0:00:06]} 64. e6 {[%clk 0:00:15]}  fxe6 {[%clk 0:00:07]} 65. Kg5 {[%clk 0:00:16]}  e5 {[%clk 0:00:07]} 66. Kxg6 {[%clk 0:00:16]}  e4 {[%clk 0:00:07]} 67. h5 {[%clk 0:00:17]}  e3 {[%clk 0:00:08]} 68. h6 {[%clk 0:00:18]}  e2 {[%clk 0:00:09]} 69. h7 {[%clk 0:00:19]}  e1=Q {[%clk 0:00:09]} 70. h8=Q+ {[%clk 0:00:20]}  Qe5 {[%clk 0:00:10]} 71. Qxe5+ {[%clk 0:00:20]}  Kxe5 {[%clk 0:00:11]} 1/2-1/2


[Site "https://www.chess.com"]

[Event "Titled Tuesday Blitz October 04 Early 2022"]
[White "Goroshkov, Maksym"]
[Black "Xu, Yi"]
[WhiteFideId "14142716"]
[BlackFideId "8605564"]
[WhiteElo "2257"]
[BlackElo "2471"]
[Result "0-1"]
[Round "03"]
[TimeControl "180+1"]
[Date "2022.10.04"]
[WhiteClock "0:00:50"]
[BlackClock "0:00:42"]

1. e4 {[%clk 0:02:59]}  c5 {[%clk 0:02:59]} 2. d4 {[%clk 0:02:59]}  cxd4 {[%clk 0:02:59]} 3. c3 {[%clk 0:03:00]}  Nf6 {[%clk 0:02:58]} 4. Bd3 {[%clk 0:03:00]}  dxc3 {[%clk 0:02:53]} 5. Nxc3 {[%clk 0:03:01]}  d6 {[%clk 0:02:51]} 6. Nf3 {[%clk 0:03:00]}  Nc6 {[%clk 0:02:51]} 7. Bb5 {[%clk 0:03:00]}  Bd7 {[%clk 0:02:49]} 8. O-O {[%clk 0:03:00]}  g6 {[%clk 0:02:48]} 9. Nd5 {[%clk 0:02:58]}  Bg7 {[%clk 0:02:46]} 10. Bg5 {[%clk 0:02:58]}  O-O {[%clk 0:02:39]} 11. Nxf6+ {[%clk 0:02:54]}  exf6 {[%clk 0:02:39]} 12. Bf4 {[%clk 0:02:50]}  Ne5 {[%clk 0:02:30]} 13. Bxd7 {[%clk 0:02:48]}  Qxd7 {[%clk 0:02:30]} 14. Bxe5 {[%clk 0:02:45]}  fxe5 {[%clk 0:02:30]} 15. Qd5 {[%clk 0:02:46]}  Rac8 {[%clk 0:02:27]} 16. Rad1 {[%clk 0:02:46]}  Rfd8 {[%clk 0:02:24]} 17. Rd2 {[%clk 0:02:42]}  Rc5 {[%clk 0:02:23]} 18. Qd3 {[%clk 0:02:35]}  d5 {[%clk 0:02:20]} 19. b4 {[%clk 0:02:30]}  Rb5 {[%clk 0:02:09]} 20. a3 {[%clk 0:02:24]}  d4 {[%clk 0:02:09]} 21. Rc2 {[%clk 0:02:21]}  a5 {[%clk 0:02:01]} 22. Rc4 {[%clk 0:02:20]}  axb4 {[%clk 0:02:01]} 23. axb4 {[%clk 0:02:21]}  Rb6 {[%clk 0:01:49]} 24. Rfc1 {[%clk 0:02:21]}  Rc6 {[%clk 0:01:49]} 25. Rc5 {[%clk 0:02:14]}  Rxc5 {[%clk 0:01:48]} 26. Rxc5 {[%clk 0:02:15]}  Qe7 {[%clk 0:01:36]} 27. h3 {[%clk 0:02:13]}  h6 {[%clk 0:01:35]} 28. Qc4 {[%clk 0:02:02]}  d3 {[%clk 0:01:30]} 29. Rc7 {[%clk 0:02:01]}  Qe6 {[%clk 0:01:16]} 30. Qxe6 {[%clk 0:01:56]}  fxe6 {[%clk 0:01:17]} 31. Nd2 {[%clk 0:01:57]}  Bf8 {[%clk 0:01:17]} 32. Rxb7 {[%clk 0:01:29]}  Rc8 {[%clk 0:01:12]} 33. Rd7 {[%clk 0:01:27]}  Rc1+ {[%clk 0:01:12]} 34. Kh2 {[%clk 0:01:26]}  Bxb4 {[%clk 0:01:09]} 35. Rxd3 {[%clk 0:01:06]}  Rd1 {[%clk 0:01:09]} 36. Rg3 {[%clk 0:01:07]}  Bxd2 {[%clk 0:01:06]} 37. Rxg6+ {[%clk 0:01:07]}  Kf7 {[%clk 0:01:06]} 38. Rg4 {[%clk 0:01:04]}  h5 {[%clk 0:01:04]} 39. Rh4 {[%clk 0:01:03]}  Kg6 {[%clk 0:00:55]} 40. g4 {[%clk 0:01:03]}  Bf4+ {[%clk 0:00:48]} 41. Kg2 {[%clk 0:01:03]}  hxg4 {[%clk 0:00:43]} 42. Rxg4+ {[%clk 0:01:03]}  Kf6 {[%clk 0:00:43]} 43. h4 {[%clk 0:01:02]}  Rd7 {[%clk 0:00:44]} 44. Kh3 {[%clk 0:00:59]}  Rg7 {[%clk 0:00:44]} 45. f3 {[%clk 0:00:54]}  Rxg4 {[%clk 0:00:44]} 46. fxg4 {[%clk 0:00:55]}  Kg6 {[%clk 0:00:44]} 47. Kg2 {[%clk 0:00:55]}  Bd2 {[%clk 0:00:44]} 48. Kh2 {[%clk 0:00:53]}  Be1 {[%clk 0:00:44]} 49. Kh3 {[%clk 0:00:52]}  Bf2 {[%clk 0:00:44]} 50. h5+ {[%clk 0:00:51]}  Kg5 {[%clk 0:00:44]} 51. Kg2 {[%clk 0:00:52]}  Be1 {[%clk 0:00:44]} 52. Kf3 {[%clk 0:00:52]}  Bd2 {[%clk 0:00:42]} 53. Ke2 {[%clk 0:00:51]}  Bc1 {[%clk 0:00:42]} 54. Kf3 {[%clk 0:00:50]}  Bf4 {[%clk 0:00:42]} 0-1


[Site "https://www.chess.com"]

[Event "Titled Tuesday Blitz October 04 Early 2022"]
[White "Gunina, Valentina"]
[Black "Kucuksari, Kaan"]
[WhiteFideId "4167570"]
[BlackFideId "6380166"]
[WhiteElo "2376"]
[BlackElo "2382"]
[Result "0-1"]
[Round "03"]
[TimeControl "180+1"]
[Date "2022.10.04"]
[WhiteClock "0:00:16"]
[BlackClock "0:00:09"]

1. d4 {[%clk 0:03:00]}  d5 {[%clk 0:02:57]} 2. c4 {[%clk 0:03:00]}  c6 {[%clk 0:02:58]} 3. Nf3 {[%clk 0:03:00]}  Nf6 {[%clk 0:02:57]} 4. e3 {[%clk 0:03:00]}  e6 {[%clk 0:02:57]} 5. Nc3 {[%clk 0:03:01]}  Nbd7 {[%clk 0:02:58]} 6. Be2 {[%clk 0:03:01]}  Bd6 {[%clk 0:02:47]} 7. O-O {[%clk 0:02:58]}  O-O {[%clk 0:02:47]} 8. b3 {[%clk 0:02:55]}  b6 {[%clk 0:02:36]} 9. Bb2 {[%clk 0:02:55]}  Bb7 {[%clk 0:02:36]} 10. Rc1 {[%clk 0:02:55]}  Qe7 {[%clk 0:02:35]} 11. Bd3 {[%clk 0:02:54]}  Rac8 {[%clk 0:02:16]} 12. Re1 {[%clk 0:02:54]}  c5 {[%clk 0:02:08]} 13. cxd5 {[%clk 0:02:54]}  exd5 {[%clk 0:02:07]} 14. Re2 {[%clk 0:02:52]}  Ne4 {[%clk 0:01:55]} 15. Rec2 {[%clk 0:02:51]}  Ndf6 {[%clk 0:01:37]} 16. g3 {[%clk 0:02:39]}  Rfe8 {[%clk 0:01:20]} 17. dxc5 {[%clk 0:02:34]}  Bxc5 {[%clk 0:01:15]} 18. Nh4 {[%clk 0:02:14]}  Nxf2 {[%clk 0:01:06]} 19. Rxf2 {[%clk 0:02:09]}  Qxe3 {[%clk 0:00:56]} 20. Rc2 {[%clk 0:02:09]}  Qg5 {[%clk 0:00:37]} 21. Nf5 {[%clk 0:01:44]}  Ng4 {[%clk 0:00:34]} 22. h4 {[%clk 0:01:29]}  Nxf2 {[%clk 0:00:22]} 23. Rxf2 {[%clk 0:01:29]}  Bxf2+ {[%clk 0:00:21]} 24. Kxf2 {[%clk 0:01:29]}  Qf6 {[%clk 0:00:22]} 25. Na4 {[%clk 0:01:29]}  d4 {[%clk 0:00:20]} 26. Bxd4 {[%clk 0:01:29]}  Qc6 {[%clk 0:00:20]} 27. Ne3 {[%clk 0:01:11]}  Rcd8 {[%clk 0:00:17]} 28. Qg4 {[%clk 0:01:10]}  f6 {[%clk 0:00:15]} 29. Bc4+ {[%clk 0:00:32]}  Kh8 {[%clk 0:00:12]} 30. Nc3 {[%clk 0:00:15]}  Rxd4 {[%clk 0:00:09]} 31. Qxd4 {[%clk 0:00:15]}  Qf3+ {[%clk 0:00:09]} 32. Kg1 {[%clk 0:00:16]}  Qxe3+ {[%clk 0:00:08]} 33. Qxe3 {[%clk 0:00:16]}  Rxe3 {[%clk 0:00:09]} 34. Kf2 {[%clk 0:00:16]}  Rxc3 {[%clk 0:00:09]} 0-1


[Site "https://www.chess.com"]

[Event "Titled Tuesday Blitz October 04 Early 2022"]
[White "Harsh Suresh"]
[Black "Bortnyk, Olexandr"]
[WhiteFideId "45018464"]
[BlackFideId "14120828"]
[WhiteElo "2180"]
[BlackElo "2723"]
[Result "0-1"]
[Round "03"]
[TimeControl "180+1"]
[Date "2022.10.04"]
[WhiteClock "0:00:10"]
[BlackClock "0:00:33"]

1. Nf3 {[%clk 0:03:00]}  Nf6 {[%clk 0:02:54]} 2. b3 {[%clk 0:03:00]}  d5 {[%clk 0:02:53]} 3. Bb2 {[%clk 0:03:00]}  Bf5 {[%clk 0:02:53]} 4. e3 {[%clk 0:03:00]}  e6 {[%clk 0:02:54]} 5. c4 {[%clk 0:03:01]}  c6 {[%clk 0:02:54]} 6. Nc3 {[%clk 0:03:01]}  Bd6 {[%clk 0:02:52]} 7. d4 {[%clk 0:03:00]}  Nbd7 {[%clk 0:02:40]} 8. Bd3 {[%clk 0:03:00]}  O-O {[%clk 0:02:39]} 9. O-O {[%clk 0:03:00]}  a6 {[%clk 0:02:28]} 10. a4 {[%clk 0:02:56]}  Re8 {[%clk 0:02:19]} 11. c5 {[%clk 0:02:37]}  Bc7 {[%clk 0:02:17]} 12. b4 {[%clk 0:02:37]}  Bxd3 {[%clk 0:02:06]} 13. Qxd3 {[%clk 0:02:38]}  e5 {[%clk 0:02:07]} 14. dxe5 {[%clk 0:02:35]}  Nxe5 {[%clk 0:02:08]} 15. Nxe5 {[%clk 0:02:34]}  Bxe5 {[%clk 0:02:09]} 16. Rab1 {[%clk 0:01:45]}  Ng4 {[%clk 0:01:08]} 17. h3 {[%clk 0:01:22]}  Qh4 {[%clk 0:01:07]} 18. Ne2 {[%clk 0:00:55]}  Bh2+ {[%clk 0:00:43]} 19. Kh1 {[%clk 0:00:55]}  Nxf2+ {[%clk 0:00:44]} 20. Rxf2 {[%clk 0:00:54]}  Qxf2 {[%clk 0:00:45]} 21. Kxh2 {[%clk 0:00:53]}  Rxe3 {[%clk 0:00:46]} 22. Qd4 {[%clk 0:00:53]}  f6 {[%clk 0:00:47]} 23. Ng1 {[%clk 0:00:28]}  Rae8 {[%clk 0:00:47]} 24. Bc3 {[%clk 0:00:17]}  Qg3+ {[%clk 0:00:45]} 25. Kh1 {[%clk 0:00:17]}  Rxc3 {[%clk 0:00:46]} 26. b5 {[%clk 0:00:15]}  Re4 {[%clk 0:00:41]} 27. Qd2 {[%clk 0:00:14]}  Qd3 {[%clk 0:00:35]} 28. bxc6 {[%clk 0:00:10]}  Qxd2 {[%clk 0:00:33]} 29. cxb7 {[%clk 0:00:10]}  Re8 {[%clk 0:00:33]} 30. b8=Q {[%clk 0:00:10]}  Rxb8 {[%clk 0:00:33]} 31. Rxb8+ {[%clk 0:00:10]}  Kf7 {[%clk 0:00:33]} 0-1


[Site "https://www.chess.com"]